[Event "Titled Tuesday Blitz January 31 Early 2023"]
[White "Winkels, Marcel"]
[Black "Levitan, Caleb Levi"]
[WhiteFideId "1003887"]
[BlackFideId "14332620"]
[WhiteElo "1960"]
[BlackElo "2129"]
[Result "1/2-1/2"]
[Round "10"]
[TimeControl "180+2"]
[Date "2023.01.31"]
[WhiteClock "0:00:24"]
[BlackClock "0:00:08"]

1. d4 {[%clk 0:03:00]}  Nf6 {[%clk 0:02:58]} 2. Bf4 {[%clk 0:03:00]}  e6 {[%clk 0:02:58]} 3. e3 {[%clk 0:03:00]}  d5 {[%clk 0:02:55]} 4. Nc3 {[%clk 0:02:59]}  a6 {[%clk 0:02:53]} 5. Nf3 {[%clk 0:02:52]}  c5 {[%clk 0:02:53]} 6. a3 {[%clk 0:02:49]}  Nc6 {[%clk 0:02:52]} 7. Bd3 {[%clk 0:02:47]}  Bd6 {[%clk 0:02:50]} 8. Bg3 {[%clk 0:02:45]}  O-O {[%clk 0:02:44]} 9. O-O {[%clk 0:02:34]}  b5 {[%clk 0:02:41]} 10. dxc5 {[%clk 0:02:32]}  Bxc5 {[%clk 0:02:31]} 11. e4 {[%clk 0:02:31]}  Bb7 {[%clk 0:02:09]} 12. exd5 {[%clk 0:02:28]}  Nxd5 {[%clk 0:02:04]} 13. Nxd5 {[%clk 0:02:23]}  Qxd5 {[%clk 0:02:00]} 14. Qe2 {[%clk 0:02:22]}  Nd4 {[%clk 0:01:57]} 15. Qd1 {[%clk 0:02:12]}  Nxf3+ {[%clk 0:01:52]} 16. Qxf3 {[%clk 0:02:08]}  Qxf3 {[%clk 0:01:50]} 17. gxf3 {[%clk 0:02:08]}  Bxf3 {[%clk 0:01:49]} 18. Rfe1 {[%clk 0:02:08]}  Rfd8 {[%clk 0:01:48]} 19. a4 {[%clk 0:02:07]}  b4 {[%clk 0:01:44]} 20. a5 {[%clk 0:02:05]}  b3 {[%clk 0:01:38]} 21. Rac1 {[%clk 0:01:51]}  bxc2 {[%clk 0:01:33]} 22. Bxc2 {[%clk 0:01:49]}  Bb4 {[%clk 0:01:31]} 23. Re3 {[%clk 0:01:42]}  Bd2 {[%clk 0:01:28]} 24. Rxf3 {[%clk 0:01:41]}  Bxc1 {[%clk 0:01:26]} 25. b3 {[%clk 0:01:37]}  Bd2 {[%clk 0:01:19]} 26. Bd3 {[%clk 0:01:37]}  Bxa5 {[%clk 0:01:17]} 27. Be5 {[%clk 0:01:34]}  f6 {[%clk 0:01:09]} 28. Bb2 {[%clk 0:01:30]}  Rac8 {[%clk 0:00:59]} 29. Bc4 {[%clk 0:01:30]}  Kf7 {[%clk 0:00:53]} 30. Rh3 {[%clk 0:01:28]}  Rd1+ {[%clk 0:00:46]} 31. Kg2 {[%clk 0:01:28]}  Rd2 {[%clk 0:00:44]} 32. Bc1 {[%clk 0:01:24]}  Rc2 {[%clk 0:00:42]} 33. Be3 {[%clk 0:01:22]}  h6 {[%clk 0:00:25]} 34. Bxa6 {[%clk 0:01:21]}  R8c3 {[%clk 0:00:17]} 35. Bc4 {[%clk 0:01:18]}  Rb2 {[%clk 0:00:14]} 36. Rh5 {[%clk 0:01:15]}  Rxe3 {[%clk 0:00:13]} 37. Rxa5 {[%clk 0:01:12]}  Rc3 {[%clk 0:00:13]} 38. Ra7+ {[%clk 0:01:10]}  Kg6 {[%clk 0:00:13]} 39. Bxe6 {[%clk 0:01:01]}  Rcc2 {[%clk 0:00:13]} 40. Bf7+ {[%clk 0:01:00]}  Kh7 {[%clk 0:00:13]} 41. Ra1 {[%clk 0:00:51]}  Rxf2+ {[%clk 0:00:13]} 42. Kg3 {[%clk 0:00:51]}  Rg2+ {[%clk 0:00:13]} 43. Kf4 {[%clk 0:00:52]}  Rxh2 {[%clk 0:00:13]} 44. Rg1 {[%clk 0:00:49]}  Rh4+ {[%clk 0:00:11]} 45. Ke3 {[%clk 0:00:47]}  Rbh2 {[%clk 0:00:09]} 46. Bg6+ {[%clk 0:00:39]}  Kg8 {[%clk 0:00:09]} 47. Rc1 {[%clk 0:00:40]}  Kf8 {[%clk 0:00:09]} 48. Rc8+ {[%clk 0:00:38]}  Ke7 {[%clk 0:00:09]} 49. Re8+ {[%clk 0:00:37]}  Kd7 {[%clk 0:00:09]} 50. Rg8 {[%clk 0:00:37]}  R4h3+ {[%clk 0:00:06]} 51. Kd4 {[%clk 0:00:36]}  Rd2+ {[%clk 0:00:05]} 52. Kc4 {[%clk 0:00:35]}  Ke6 {[%clk 0:00:05]} 53. Rxg7 {[%clk 0:00:33]}  Rh4+ {[%clk 0:00:04]} 54. Kc3 {[%clk 0:00:32]}  Rdh2 {[%clk 0:00:04]} 55. Rg8 {[%clk 0:00:31]}  h5 {[%clk 0:00:04]} 56. Re8+ {[%clk 0:00:30]}  Kd7 {[%clk 0:00:04]} 57. Rh8 {[%clk 0:00:29]}  R2h3+ {[%clk 0:00:04]} 58. Kb2 {[%clk 0:00:29]}  Rg3 {[%clk 0:00:04]} 59. Bxh5 {[%clk 0:00:27]}  Rg5 {[%clk 0:00:04]} 60. Be8+ {[%clk 0:00:26]}  Ke7 {[%clk 0:00:05]} 61. Rxh4 {[%clk 0:00:27]}  Kxe8 {[%clk 0:00:05]} 62. Rf4 {[%clk 0:00:27]}  Ke7 {[%clk 0:00:05]} 63. b4 {[%clk 0:00:26]}  f5 {[%clk 0:00:06]} 64. Kb3 {[%clk 0:00:26]}  Ke6 {[%clk 0:00:06]} 65. Ka4 {[%clk 0:00:26]}  Ke5 {[%clk 0:00:07]} 66. Rf1 {[%clk 0:00:26]}  f4 {[%clk 0:00:07]} 67. b5 {[%clk 0:00:26]}  Ke4 {[%clk 0:00:08]} 68. b6 {[%clk 0:00:26]}  f3 {[%clk 0:00:08]} 69. b7 {[%clk 0:00:26]}  Rg8 {[%clk 0:00:08]} 70. Rb1 {[%clk 0:00:25]}  Rb8 {[%clk 0:00:07]} 71. Ka5 {[%clk 0:00:25]}  f2 {[%clk 0:00:06]} 72. Kb6 {[%clk 0:00:26]}  Ke3 {[%clk 0:00:06]} 73. Kc7 {[%clk 0:00:24]}  Rxb7+ {[%clk 0:00:06]} 74. Kxb7 {[%clk 0:00:25]}  Ke2 {[%clk 0:00:07]} 75. Kc6 {[%clk 0:00:24]}  f1=Q {[%clk 0:00:07]} 76. Rxf1 {[%clk 0:00:24]}  Kxf1 {[%clk 0:00:08]} 1/2-1/2


[Site "https://www.chess.com"]

[Event "Titled Tuesday Blitz January 31 Early 2023"]
[White "Gundam, Rohit"]
[Black "Fernandez Hernandez, Gerardo"]
[WhiteFideId "75002809"]
[BlackFideId "2207400"]
[WhiteElo "2058"]
[BlackElo "2181"]
[Result "1-0"]
[Round "10"]
[TimeControl "180+2"]
[Date "2023.01.31"]
[WhiteClock "0:00:35"]
[BlackClock "0:00:01"]

1. d4 {[%clk 0:02:57]}  Nf6 {[%clk 0:03:00]} 2. Nf3 {[%clk 0:02:58]}  g6 {[%clk 0:02:59]} 3. c4 {[%clk 0:02:59]}  Bg7 {[%clk 0:02:59]} 4. Nc3 {[%clk 0:03:00]}  O-O {[%clk 0:02:59]} 5. e4 {[%clk 0:03:00]}  d6 {[%clk 0:03:00]} 6. h3 {[%clk 0:03:01]}  Na6 {[%clk 0:02:59]} 7. Be3 {[%clk 0:03:00]}  c5 {[%clk 0:02:59]} 8. e5 {[%clk 0:02:58]}  Nd7 {[%clk 0:02:48]} 9. exd6 {[%clk 0:02:44]}  exd6 {[%clk 0:02:45]} 10. d5 {[%clk 0:02:45]}  Re8 {[%clk 0:02:39]} 11. Be2 {[%clk 0:02:42]}  Rxe3 {[%clk 0:02:37]} 12. fxe3 {[%clk 0:02:43]}  Ne5 {[%clk 0:02:34]} 13. O-O {[%clk 0:02:42]}  Bf5 {[%clk 0:02:16]} 14. e4 {[%clk 0:02:38]}  Bd7 {[%clk 0:02:03]} 15. a3 {[%clk 0:02:36]}  Nc7 {[%clk 0:01:56]} 16. Qc2 {[%clk 0:02:26]}  Qe7 {[%clk 0:01:42]} 17. Rad1 {[%clk 0:02:25]}  a6 {[%clk 0:01:40]} 18. Nb1 {[%clk 0:02:25]}  b5 {[%clk 0:01:31]} 19. Nbd2 {[%clk 0:02:25]}  bxc4 {[%clk 0:01:24]} 20. Nxe5 {[%clk 0:02:24]}  Bxe5 {[%clk 0:01:21]} 21. Nxc4 {[%clk 0:02:24]}  Bg7 {[%clk 0:01:07]} 22. Bg4 {[%clk 0:02:00]}  Bxg4 {[%clk 0:00:57]} 23. hxg4 {[%clk 0:02:01]}  Nb5 {[%clk 0:00:55]} 24. e5 {[%clk 0:01:44]}  dxe5 {[%clk 0:00:33]} 25. d6 {[%clk 0:01:44]}  Qh4 {[%clk 0:00:29]} 26. d7 {[%clk 0:01:43]}  Nd4 {[%clk 0:00:27]} 27. Qf2 {[%clk 0:01:43]}  Qxf2+ {[%clk 0:00:19]} 28. Rxf2 {[%clk 0:01:44]}  Rd8 {[%clk 0:00:18]} 29. Nb6 {[%clk 0:01:37]}  e4 {[%clk 0:00:18]} 30. Rdf1 {[%clk 0:01:29]}  f5 {[%clk 0:00:17]} 31. gxf5 {[%clk 0:01:28]}  gxf5 {[%clk 0:00:17]} 32. Rxf5 {[%clk 0:01:19]}  Nxf5 {[%clk 0:00:17]} 33. Rxf5 {[%clk 0:01:20]}  Bd4+ {[%clk 0:00:15]} 34. Kf1 {[%clk 0:01:18]}  c4 {[%clk 0:00:14]} 35. Rg5+ {[%clk 0:01:06]}  Kf8 {[%clk 0:00:09]} 36. Nxc4 {[%clk 0:00:59]}  Rxd7 {[%clk 0:00:08]} 37. Rf5+ {[%clk 0:01:00]}  Rf7 {[%clk 0:00:07]} 38. Rxf7+ {[%clk 0:01:01]}  Kxf7 {[%clk 0:00:08]} 39. b3 {[%clk 0:00:55]}  Ke6 {[%clk 0:00:07]} 40. Ke2 {[%clk 0:00:56]}  Kd5 {[%clk 0:00:06]} 41. Nd2 {[%clk 0:00:54]}  e3 {[%clk 0:00:05]} 42. Nf3 {[%clk 0:00:52]}  Bb2 {[%clk 0:00:03]} 43. a4 {[%clk 0:00:49]}  Ke4 {[%clk 0:00:03]} 44. b4 {[%clk 0:00:48]}  Bc3 {[%clk 0:00:03]} 45. b5 {[%clk 0:00:48]}  axb5 {[%clk 0:00:02]} 46. axb5 {[%clk 0:00:49]}  Ba5 {[%clk 0:00:03]} 47. Ne1 {[%clk 0:00:46]}  Bb6 {[%clk 0:00:02]} 48. Nc2 {[%clk 0:00:44]}  Kf4 {[%clk 0:00:02]} 49. Nb4 {[%clk 0:00:35]}  Kg3 {[%clk 0:00:01]} 50. Nd5 {[%clk 0:00:36]}  Bc5 {[%clk 0:00:01]} 51. Nxe3 {[%clk 0:00:35]} 1-0


[Site "https://www.chess.com"]

[Event "Titled Tuesday Blitz January 31 Early 2023"]
[White "Mohammadian, Mohammad"]
[Black "Quirke, Jeffrey"]
[WhiteFideId "12566055"]
[BlackFideId "2013029"]
[WhiteElo "1398"]
[BlackElo "2007"]
[Result "0-1"]
[Round "10"]
[TimeControl "180+2"]
[Date "2023.01.31"]
[WhiteClock "0:00:16"]
[BlackClock "0:00:32"]

1. e4 {[%clk 0:03:00]}  c5 {[%clk 0:02:56]} 2. Nf3 {[%clk 0:03:00]}  g6 {[%clk 0:02:55]} 3. d4 {[%clk 0:02:59]}  cxd4 {[%clk 0:02:55]} 4. Nxd4 {[%clk 0:02:59]}  Nf6 {[%clk 0:02:55]} 5. Nc3 {[%clk 0:02:58]}  d6 {[%clk 0:02:53]} 6. Be2 {[%clk 0:02:58]}  Bg7 {[%clk 0:02:53]} 7. Be3 {[%clk 0:02:58]}  O-O {[%clk 0:02:52]} 8. Qd2 {[%clk 0:02:58]}  Nc6 {[%clk 0:02:52]} 9. O-O-O {[%clk 0:02:56]}  Bd7 {[%clk 0:02:46]} 10. f3 {[%clk 0:02:55]}  Rc8 {[%clk 0:02:45]} 11. Kb1 {[%clk 0:02:54]}  Ne5 {[%clk 0:02:45]} 12. Bh6 {[%clk 0:02:50]}  Nc4 {[%clk 0:02:44]} 13. Bxc4 {[%clk 0:02:48]}  Rxc4 {[%clk 0:02:45]} 14. Bxg7 {[%clk 0:02:49]}  Kxg7 {[%clk 0:02:45]} 15. h4 {[%clk 0:02:48]}  h5 {[%clk 0:02:39]} 16. g4 {[%clk 0:02:47]}  Qa5 {[%clk 0:02:07]} 17. Nd5 {[%clk 0:02:44]}  Qxd2 {[%clk 0:02:05]} 18. Rxd2 {[%clk 0:02:41]}  hxg4 {[%clk 0:01:53]} 19. Nxf6 {[%clk 0:02:36]}  exf6 {[%clk 0:01:44]} 20. fxg4 {[%clk 0:02:36]}  Bxg4 {[%clk 0:01:42]} 21. b3 {[%clk 0:02:22]}  Rc5 {[%clk 0:01:36]} 22. Rg1 {[%clk 0:02:13]}  Bc8 {[%clk 0:01:24]} 23. Nf3 {[%clk 0:02:09]}  Re8 {[%clk 0:01:14]} 24. Rxd6 {[%clk 0:02:02]}  Rxe4 {[%clk 0:01:14]} 25. Rf1 {[%clk 0:01:57]}  Rf4 {[%clk 0:01:08]} 26. Nd2 {[%clk 0:01:18]}  Rxf1+ {[%clk 0:01:07]} 27. Nxf1 {[%clk 0:01:18]}  Bf5 {[%clk 0:01:02]} 28. Rd2 {[%clk 0:01:12]}  Be4 {[%clk 0:00:58]} 29. Ne3 {[%clk 0:01:10]}  f5 {[%clk 0:00:57]} 30. Ng2 {[%clk 0:01:03]}  Rc3 {[%clk 0:00:51]} 31. Nf4 {[%clk 0:00:57]}  Rf3 {[%clk 0:00:49]} 32. Nd5 {[%clk 0:00:50]}  Rh3 {[%clk 0:00:38]} 33. Nc7 {[%clk 0:00:37]}  Rxh4 {[%clk 0:00:38]} 34. Ne8+ {[%clk 0:00:36]}  Kf8 {[%clk 0:00:37]} 35. Rd8 {[%clk 0:00:34]}  Ke7 {[%clk 0:00:36]} 36. Rb8 {[%clk 0:00:32]}  f4 {[%clk 0:00:35]} 37. Nc7 {[%clk 0:00:22]}  f3 {[%clk 0:00:34]} 38. Nb5 {[%clk 0:00:16]}  f2 {[%clk 0:00:32]} 0-1


[Site "https://www.chess.com"]

[Event "Titled Tuesday Blitz January 31 Early 2023"]
[White "Gritsenko, Nikolai"]
[Black "Vargas, Mauricio"]
[WhiteFideId "14112493"]
[BlackFideId "4404572"]
[WhiteElo "2309"]
[BlackElo "2035"]
[Result "1-0"]
[Round "10"]
[TimeControl "180+2"]
[Date "2023.01.31"]
[WhiteClock "0:01:57"]
[BlackClock "0:01:05"]

1. d4 {[%clk 0:03:00]}  d5 {[%clk 0:02:38]} 2. Nf3 {[%clk 0:03:00]}  c6 {[%clk 0:02:35]} 3. c4 {[%clk 0:02:59]}  e6 {[%clk 0:02:34]} 4. e3 {[%clk 0:02:58]}  Nf6 {[%clk 0:02:34]} 5. Nc3 {[%clk 0:02:58]}  Nbd7 {[%clk 0:02:34]} 6. Bd3 {[%clk 0:02:58]}  dxc4 {[%clk 0:02:34]} 7. Bxc4 {[%clk 0:02:58]}  b5 {[%clk 0:02:32]} 8. Bb3 {[%clk 0:02:54]}  Bd6 {[%clk 0:02:32]} 9. O-O {[%clk 0:02:52]}  O-O {[%clk 0:02:30]} 10. a4 {[%clk 0:02:50]}  b4 {[%clk 0:02:27]} 11. Ne2 {[%clk 0:02:47]}  a5 {[%clk 0:02:26]} 12. Ng3 {[%clk 0:02:45]}  Ba6 {[%clk 0:02:25]} 13. Re1 {[%clk 0:02:44]}  Rc8 {[%clk 0:02:22]} 14. e4 {[%clk 0:02:43]}  Bb8 {[%clk 0:02:18]} 15. e5 {[%clk 0:02:38]}  Nd5 {[%clk 0:02:17]} 16. Bc2 {[%clk 0:02:38]}  Re8 {[%clk 0:02:11]} 17. Bxh7+ {[%clk 0:02:29]}  Kxh7 {[%clk 0:02:08]} 18. Ng5+ {[%clk 0:02:28]}  Kg8 {[%clk 0:02:06]} 19. Qh5 {[%clk 0:02:28]}  Nf8 {[%clk 0:02:01]} 20. Qxf7+ {[%clk 0:02:25]}  Kh8 {[%clk 0:02:00]} 21. Re4 {[%clk 0:02:15]}  Bd3 {[%clk 0:01:46]} 22. Rh4+ {[%clk 0:02:12]}  Bh7 {[%clk 0:01:46]} 23. Rxh7+ {[%clk 0:02:05]}  Nxh7 {[%clk 0:01:45]} 24. Qh5 {[%clk 0:02:05]}  Nf6 {[%clk 0:01:41]} 25. exf6 {[%clk 0:02:04]}  Qxd4 {[%clk 0:01:05]} 26. Qxh7# {[%clk 0:01:57]} 1-0


[Site "https://www.chess.com"]

[Event "Titled Tuesday Blitz January 31 Early 2023"]
[White "Sadovsky, Artem"]
[Black "Burdalev, Kirill"]
[WhiteFideId "4155840"]
[BlackFideId "14121913"]
[WhiteElo "2276"]
[BlackElo "2368"]
[Result "1-0"]
[Round "10"]
[TimeControl "180+2"]
[Date "2023.01.31"]
[WhiteClock "0:01:15"]
[BlackClock "0:00:01"]

1. Nf3 {[%clk 0:03:00]}  Nf6 {[%clk 0:02:57]} 2. e3 {[%clk 0:03:01]}  g6 {[%clk 0:02:56]} 3. c4 {[%clk 0:03:02]}  Bg7 {[%clk 0:02:54]} 4. b3 {[%clk 0:03:03]}  O-O {[%clk 0:02:53]} 5. Bb2 {[%clk 0:03:03]}  d6 {[%clk 0:02:52]} 6. d4 {[%clk 0:03:02]}  Nbd7 {[%clk 0:02:51]} 7. Nc3 {[%clk 0:03:01]}  e5 {[%clk 0:02:48]} 8. Be2 {[%clk 0:02:59]}  Re8 {[%clk 0:02:46]} 9. O-O {[%clk 0:02:59]}  e4 {[%clk 0:02:46]} 10. Nd2 {[%clk 0:02:58]}  h5 {[%clk 0:02:43]} 11. h3 {[%clk 0:02:54]}  Nf8 {[%clk 0:02:39]} 12. d5 {[%clk 0:02:54]}  h4 {[%clk 0:02:34]} 13. Qc2 {[%clk 0:02:53]}  Bf5 {[%clk 0:02:29]} 14. Nb5 {[%clk 0:02:47]}  N8h7 {[%clk 0:02:21]} 15. Nd4 {[%clk 0:02:47]}  Bd7 {[%clk 0:02:18]} 16. Kh1 {[%clk 0:02:36]}  Ng5 {[%clk 0:02:16]} 17. Rg1 {[%clk 0:02:32]}  Qc8 {[%clk 0:02:06]} 18. Bf1 {[%clk 0:02:32]}  Nxh3 {[%clk 0:01:12]} 19. gxh3 {[%clk 0:02:29]}  Bxh3 {[%clk 0:01:09]} 20. Ne2 {[%clk 0:02:26]}  Ng4 {[%clk 0:00:53]} 21. Bxh3 {[%clk 0:02:12]}  Nxf2+ {[%clk 0:00:51]} 22. Kg2 {[%clk 0:02:13]}  Nxh3 {[%clk 0:00:46]} 23. Bxg7 {[%clk 0:02:06]}  Qg4+ {[%clk 0:00:34]} 24. Kh2 {[%clk 0:01:47]}  Nxg1 {[%clk 0:00:21]} 25. Nxg1 {[%clk 0:01:48]}  Kxg7 {[%clk 0:00:19]} 26. Nf1 {[%clk 0:01:43]}  Re5 {[%clk 0:00:16]} 27. Qg2 {[%clk 0:01:39]}  Qxg2+ {[%clk 0:00:11]} 28. Kxg2 {[%clk 0:01:39]}  g5 {[%clk 0:00:10]} 29. Nh3 {[%clk 0:01:36]}  a5 {[%clk 0:00:08]} 30. Nh2 {[%clk 0:01:35]}  Kg6 {[%clk 0:00:03]} 31. Ng4 {[%clk 0:01:35]}  Ree8 {[%clk 0:00:03]} 32. Rg1 {[%clk 0:01:26]}  f5 {[%clk 0:00:03]} 33. Ngf2 {[%clk 0:01:26]}  Kf6 {[%clk 0:00:03]} 34. Kf1 {[%clk 0:01:25]}  g4 {[%clk 0:00:03]} 35. Nf4 {[%clk 0:01:25]}  h3 {[%clk 0:00:03]} 36. Nh1 {[%clk 0:01:25]}  Rh8 {[%clk 0:00:02]} 37. Ng3 {[%clk 0:01:25]}  a4 {[%clk 0:00:02]} 38. b4 {[%clk 0:01:26]}  a3 {[%clk 0:00:02]} 39. Kf2 {[%clk 0:01:26]}  Ra4 {[%clk 0:00:02]} 40. Rb1 {[%clk 0:01:26]}  h2 {[%clk 0:00:02]} 41. Kg2 {[%clk 0:01:27]}  b6 {[%clk 0:00:01]} 42. Rf1 {[%clk 0:01:15]}  Rh6 {[%clk 0:00:01]} 43. Nfh5+ {[%clk 0:01:15]} 1-0


[Site "https://www.chess.com"]

[Event "Titled Tuesday Blitz January 31 Early 2023"]
[White "Caruana, Fabiano"]
[Black "So, Wesley"]
[WhiteFideId "2020009"]
[BlackFideId "5202213"]
[WhiteElo "2764"]
[BlackElo "2760"]
[Result "1-0"]
[Round "11"]
[TimeControl "180+2"]
[Date "2023.01.31"]
[WhiteClock "0:00:04"]
[BlackClock "0:00:02"]

1. d4 {[%clk 0:03:00]}  Nf6 {[%clk 0:02:59]} 2. c4 {[%clk 0:03:01]}  e6 {[%clk 0:02:59]} 3. Nc3 {[%clk 0:03:02]}  Bb4 {[%clk 0:02:58]} 4. e3 {[%clk 0:03:02]}  c5 {[%clk 0:02:57]} 5. Ne2 {[%clk 0:03:02]}  d5 {[%clk 0:02:57]} 6. a3 {[%clk 0:03:01]}  Bxc3+ {[%clk 0:02:57]} 7. Nxc3 {[%clk 0:03:01]}  cxd4 {[%clk 0:02:57]} 8. exd4 {[%clk 0:03:02]}  dxc4 {[%clk 0:02:58]} 9. Bxc4 {[%clk 0:03:03]}  Nc6 {[%clk 0:02:58]} 10. Be3 {[%clk 0:03:03]}  O-O {[%clk 0:02:59]} 11. O-O {[%clk 0:03:02]}  b6 {[%clk 0:02:59]} 12. Qf3 {[%clk 0:03:03]}  Bb7 {[%clk 0:02:59]} 13. Bd3 {[%clk 0:03:02]}  Qd7 {[%clk 0:03:00]} 14. Qh3 {[%clk 0:02:40]}  Ne7 {[%clk 0:02:59]} 15. Rad1 {[%clk 0:02:40]}  Ng6 {[%clk 0:02:56]} 16. Rfe1 {[%clk 0:02:33]}  Nd5 {[%clk 0:02:49]} 17. Qg3 {[%clk 0:02:31]}  Kh8 {[%clk 0:02:36]} 18. h4 {[%clk 0:02:28]}  Nge7 {[%clk 0:02:29]} 19. h5 {[%clk 0:02:20]}  h6 {[%clk 0:02:29]} 20. Bd2 {[%clk 0:02:08]}  Nf5 {[%clk 0:02:27]} 21. Qe5 {[%clk 0:01:48]}  Rfe8 {[%clk 0:02:18]} 22. Bb5 {[%clk 0:01:37]}  Bc6 {[%clk 0:02:15]} 23. Nxd5 {[%clk 0:01:34]}  Bxb5 {[%clk 0:02:09]} 24. Nc7 {[%clk 0:01:19]}  f6 {[%clk 0:02:09]} 25. Qh2 {[%clk 0:01:03]}  Ba4 {[%clk 0:02:08]} 26. Rc1 {[%clk 0:01:00]}  Nxd4 {[%clk 0:02:02]} 27. Nxa8 {[%clk 0:01:00]}  Rxa8 {[%clk 0:02:02]} 28. Rc7 {[%clk 0:00:55]}  Qd5 {[%clk 0:01:43]} 29. Bc3 {[%clk 0:00:52]}  Nb5 {[%clk 0:01:31]} 30. Re7 {[%clk 0:00:52]}  e5 {[%clk 0:01:27]} 31. Qg3 {[%clk 0:00:49]}  Rg8 {[%clk 0:01:27]} 32. Rc1 {[%clk 0:00:42]}  a5 {[%clk 0:01:23]} 33. Qf3 {[%clk 0:00:26]}  Qxf3 {[%clk 0:00:55]} 34. gxf3 {[%clk 0:00:27]}  Nd6 {[%clk 0:00:56]} 35. b4 {[%clk 0:00:21]}  axb4 {[%clk 0:00:46]} 36. Bxb4 {[%clk 0:00:22]}  Nf5 {[%clk 0:00:46]} 37. Rb7 {[%clk 0:00:18]}  b5 {[%clk 0:00:47]} 38. Kg2 {[%clk 0:00:17]}  Rd8 {[%clk 0:00:42]} 39. Rbc7 {[%clk 0:00:09]}  Kh7 {[%clk 0:00:37]} 40. Rc8 {[%clk 0:00:08]}  Rd3 {[%clk 0:00:31]} 41. R1c3 {[%clk 0:00:07]}  Rd4 {[%clk 0:00:22]} 42. Rf8 {[%clk 0:00:07]}  Rh4 {[%clk 0:00:22]} 43. Rc7 {[%clk 0:00:06]}  Bd1 {[%clk 0:00:16]} 44. Rxf6 {[%clk 0:00:06]}  Rf4 {[%clk 0:00:16]} 45. Rff7 {[%clk 0:00:04]}  Bxf3+ {[%clk 0:00:15]} 46. Kf1 {[%clk 0:00:05]}  Rh4 {[%clk 0:00:14]} 47. Ke1 {[%clk 0:00:04]}  Rxh5 {[%clk 0:00:12]} 48. Bf8 {[%clk 0:00:03]}  Rg5 {[%clk 0:00:12]} 49. Kd2 {[%clk 0:00:03]}  h5 {[%clk 0:00:12]} 50. Be7 {[%clk 0:00:03]}  Nxe7 {[%clk 0:00:09]} 51. Rxf3 {[%clk 0:00:04]}  Nf5 {[%clk 0:00:09]} 52. Rc5 {[%clk 0:00:03]}  Nd4 {[%clk 0:00:08]} 53. Re3 {[%clk 0:00:03]}  Rf5 {[%clk 0:00:07]} 54. Kc3 {[%clk 0:00:03]}  h4 {[%clk 0:00:03]} 55. Rcxe5 {[%clk 0:00:03]}  Rxe5 {[%clk 0:00:02]} 56. Rxe5 {[%clk 0:00:04]}  Nf3 {[%clk 0:00:02]} 57. Rf5 {[%clk 0:00:04]} 1-0


[Site "https://www.chess.com"]

[Event "Titled Tuesday Blitz January 31 Early 2023"]
[White "Svidler, Peter"]
[Black "Drygalov, Sergey"]
[WhiteFideId "4102142"]
[BlackFideId "24171743"]
[WhiteElo "2683"]
[BlackElo "2547"]
[Result "0-1"]
[Round "11"]
[TimeControl "180+2"]
[Date "2023.01.31"]
[WhiteClock "0:00:20"]
[BlackClock "0:00:17"]

1. e4 {[%clk 0:03:00]}  c5 {[%clk 0:02:59]} 2. Nf3 {[%clk 0:03:00]}  d6 {[%clk 0:03:00]} 3. d4 {[%clk 0:03:00]}  cxd4 {[%clk 0:03:00]} 4. Nxd4 {[%clk 0:03:00]}  Nf6 {[%clk 0:03:01]} 5. Nc3 {[%clk 0:03:00]}  a6 {[%clk 0:03:02]} 6. Be3 {[%clk 0:02:59]}  e5 {[%clk 0:03:02]} 7. Nb3 {[%clk 0:02:57]}  Be7 {[%clk 0:03:00]} 8. f3 {[%clk 0:02:57]}  Be6 {[%clk 0:02:59]} 9. Qd2 {[%clk 0:02:57]}  Nbd7 {[%clk 0:02:59]} 10. g4 {[%clk 0:02:56]}  b5 {[%clk 0:02:59]} 11. O-O-O {[%clk 0:02:53]}  Nb6 {[%clk 0:02:59]} 12. Qf2 {[%clk 0:02:51]}  Nfd7 {[%clk 0:02:57]} 13. Kb1 {[%clk 0:02:49]}  O-O {[%clk 0:02:53]} 14. h4 {[%clk 0:02:48]}  Qc7 {[%clk 0:02:43]} 15. g5 {[%clk 0:02:42]}  b4 {[%clk 0:02:32]} 16. Nd5 {[%clk 0:02:38]}  Nxd5 {[%clk 0:02:32]} 17. exd5 {[%clk 0:02:39]}  Bf5 {[%clk 0:02:33]} 18. Bd3 {[%clk 0:02:38]}  Bxd3 {[%clk 0:02:33]} 19. Rxd3 {[%clk 0:02:38]}  a5 {[%clk 0:02:33]} 20. Nd2 {[%clk 0:02:36]}  a4 {[%clk 0:02:29]} 21. Qg2 {[%clk 0:02:28]}  f5 {[%clk 0:02:20]} 22. gxf6 {[%clk 0:02:27]}  Nxf6 {[%clk 0:02:20]} 23. h5 {[%clk 0:02:27]}  Rf7 {[%clk 0:02:20]} 24. b3 {[%clk 0:02:17]}  Qb7 {[%clk 0:02:11]} 25. f4 {[%clk 0:02:16]}  axb3 {[%clk 0:02:03]} 26. cxb3 {[%clk 0:02:13]}  e4 {[%clk 0:01:57]} 27. Rd4 {[%clk 0:02:12]}  Nxd5 {[%clk 0:01:46]} 28. Rxd5 {[%clk 0:01:12]}  Qxd5 {[%clk 0:01:46]} 29. Qxe4 {[%clk 0:01:13]}  Qxe4+ {[%clk 0:01:31]} 30. Nxe4 {[%clk 0:01:12]}  d5 {[%clk 0:01:31]} 31. Nc5 {[%clk 0:01:09]}  Bxc5 {[%clk 0:01:29]} 32. Bxc5 {[%clk 0:01:09]}  Rxf4 {[%clk 0:01:29]} 33. Rd1 {[%clk 0:01:10]}  Rf5 {[%clk 0:01:23]} 34. Bxb4 {[%clk 0:01:09]}  Rxh5 {[%clk 0:01:23]} 35. a4 {[%clk 0:01:07]}  Re5 {[%clk 0:01:17]} 36. Bc3 {[%clk 0:01:04]}  Re3 {[%clk 0:01:15]} 37. Kb2 {[%clk 0:01:03]}  Rc8 {[%clk 0:01:10]} 38. Bd4 {[%clk 0:01:03]}  Re4 {[%clk 0:00:49]} 39. a5 {[%clk 0:01:02]}  h5 {[%clk 0:00:49]} 40. a6 {[%clk 0:00:56]}  h4 {[%clk 0:00:49]} 41. a7 {[%clk 0:00:50]}  h3 {[%clk 0:00:44]} 42. Rc1 {[%clk 0:00:41]}  Re2+ {[%clk 0:00:34]} 43. Ka3 {[%clk 0:00:41]}  Ra8 {[%clk 0:00:34]} 44. Rc7 {[%clk 0:00:39]}  Rg2 {[%clk 0:00:31]} 45. Rb7 {[%clk 0:00:37]}  Kh7 {[%clk 0:00:27]} 46. Re7 {[%clk 0:00:23]}  h2 {[%clk 0:00:23]} 47. Re1 {[%clk 0:00:23]}  g5 {[%clk 0:00:22]} 48. b4 {[%clk 0:00:22]}  Rg4 {[%clk 0:00:16]} 49. Bc5 {[%clk 0:00:21]}  Rh4 {[%clk 0:00:16]} 50. Rh1 {[%clk 0:00:20]}  g4 {[%clk 0:00:16]} 51. Bf2 {[%clk 0:00:20]}  Rh3+ {[%clk 0:00:15]} 52. Ka4 {[%clk 0:00:20]}  g3 {[%clk 0:00:15]} 53. Bxg3 {[%clk 0:00:20]}  Rxa7+ {[%clk 0:00:16]} 54. Kb5 {[%clk 0:00:20]}  Rxg3 {[%clk 0:00:16]} 55. Rxh2+ {[%clk 0:00:20]}  Kg6 {[%clk 0:00:17]} 0-1


[Site "https://www.chess.com"]